fUSD/lending_fUSD_20251001
["ID","MTS","AMOUNT","RATE_DAILY","PERIOD"]
[388789673,1759361469159,-151.0,0.00022,7]
[388789674,1759361469171,-151.0,0.00022,7]
[388789675,1759361469183,-151.0,0.00022,7]
[388789676,1759361469194,-151.0,0.00022,7]
[388789677,1759361469206,-151.0,0.00022,7]
[388789678,1759361469219,-150.0,0.00022,2]
[388789679,1759361469230,-294.35803713,0.00022,2]
[388789680,1759361469242,-202.840262,0.00022,7]
[388789681,1759361469253,-151.0,0.00022,7]
[388789682,1759361469264,-151.0,0.00022,7]
[388789683,1759361469276,-196.5238,0.00022,7]
[388789684,1759361469288,-242.43,0.00022,2]
[388789685,1759361469300,-188.5,0.00022021,2]
[388789686,1759361469312,-800.0,0.00022028,2]
[388789687,1759361469323,-1600.41,0.00022061,2]
[388789688,1759361469335,-3292.0,0.00022073,2]
[388789689,1759361469346,-175.31811306,0.00022091,2]
[388789690,1759361469359,-173.81231863,0.00022091,2]
[388789691,1759361469370,-425.48502648,0.00022098,18]
[388789692,1759361469382,-600.0,0.0002211,2]
[388789693,1759361469394,-164.23116858,0.00022137,2]
[388789694,1759361469405,-175.11031138,0.0002215,2]
[388789695,1759361469417,-500.0,0.00022173,2]
[388789696,1759361469430,-500.0,0.00022173,2]
[388789697,1759361469441,-500.0,0.00022173,2]
[388789698,1759361469452,-500.0,0.00022173,2]
[388789699,1759361469464,-500.0,0.00022173,2]
[388789700,1759361469475,-500.0,0.00022173,2]
[388789701,1759361469487,-500.0,0.00022173,2]
[388789702,1759361469498,-500.0,0.00022173,2]
[388789703,1759361469509,-500.0,0.00022173,2]
[388789704,1759361469521,-500.0,0.00022173,2]
[388789705,1759361469532,-500.0,0.00022173,2]
[388789706,1759361469543,-560.87842462,0.00022173,2]
[388789707,1759361469555,-500.0,0.00022173,2]
[388789708,1759361469567,-500.0,0.00022173,2]
[388789709,1759361469577,-500.0,0.00022173,2]
[388789710,1759361469588,-500.0,0.00022173,2]
[388789711,1759361469599,-500.0,0.00022173,2]
[388789712,1759361469610,-500.0,0.00022173,2]
[388789713,1759361469621,-500.0,0.00022173,2]
[388789714,1759361469632,-165.98789262,0.00022173,2]
[388789715,1759361469643,-500.0,0.00022173,2]
[388789716,1759361469654,-500.0,0.00022173,2]
[388789717,1759361469664,-233.31442647,0.0002219,7]
[388789718,1759361469675,-561.61664997,0.0002219,2]
[388789719,1759361469686,-300.0,0.0002219,2]
[388789720,1759361469698,-666.0,0.0002219,2]
[388789721,1759361469709,-300.0,0.0002219,2]
[388789722,1759361469720,-300.0,0.0002219,2]
[388789723,1759361469730,-500.0,0.00022191,2]
[388789724,1759361469741,-974.62,0.00022191,2]
[388789725,1759361469752,-2237.86,0.00022191,2]
[388789726,1759361469763,-4301.95,0.00022191,2]
[388789727,1759361469773,-699.79792307,0.00022191,2]
[388789728,1759361470814,-160.756906,0.00020145,2]
[388789729,1759361470826,-132.82166586,0.00020145,2]
[388789731,1759361518657,853.0539,0.00030136,120]
[388789732,1759361656064,188.51,0.00029104,120]
[388789733,1759361659707,537.0,0.00030137,120]
[388789734,1759361686869,536.0,0.00030137,120]
[388789735,1759361715728,535.0,0.00030137,120]
[388789736,1759361725785,534.0,0.00030137,120]
[388789737,1759361778685,432.67,0.00030137,120]
[388789738,1759361806623,500.0,0.00030137,120]
[388789739,1759361820192,150.0,0.000158,2]
[388789744,1759362103925,-195.30570875,0.00016613,2]
[388789745,1759362108142,-240.89777635,0.00016613,2]
[388789746,1759362111152,-223.34865607,0.00016613,2]
[388789747,1759362183545,30000.0,0.00030136,120]
[388789748,1759362248090,151.18,8.432e-05,2]
[388789749,1759362248297,151.18,9.369e-05,2]
[388789750,1759362248534,151.18,0.00010306,2]
[388789751,1759362248745,151.18,0.00011243,2]
[388789752,1759362250424,151.18,0.00012179,2]
[388789753,1759362250497,151.18,0.00013116,2]
[388789754,1759362250577,151.18,0.00014053,2]
[388789755,1759362257087,151.18,0.0001499,2]
[388789756,1759362257514,151.18,0.00015927,2]
[388789757,1759362338512,-193.70625838,0.00016655,2]
[388789758,1759362338536,-195.0,0.00016669,2]
[388789759,1759362338562,-2500.0,0.00016684,2]
[388789760,1759362338587,-1211.8757611,0.00016744,2]
[388789761,1759362338610,-276.32993464,0.00016755,2]
[388789762,1759362338635,-300.0,0.00016799,2]
[388789763,1759362338659,-1200.0,0.00016799,2]
[388789764,1759362338684,-300.0,0.00016799,2]
[388789765,1759362338708,-2500.0,0.000168,2]
[388789766,1759362338731,-2317.5504,0.000168,2]
[388789767,1759362338754,-232.8308,0.000168,2]
[388789768,1759362338778,-1000.0,0.000168,2]
[388789769,1759362338802,-9086.95948257,0.00016825,2]
[388789770,1759362338827,-151.18,0.00016864,2]
[388789771,1759362338852,-151.0,0.0001689,2]
[388789772,1759362338876,-151.0,0.0001689,2]
[388789773,1759362338901,-151.0,0.0001689,2]
[388789774,1759362338925,-151.0,0.0001689,2]
[388789775,1759362338949,-151.0,0.0001689,2]
[388789776,1759362338974,-151.0,0.0001689,2]
[388789777,1759362338999,-279.17368307,0.0001689,2]
[388789778,1759362339023,-200.0,0.0001689,2]
[388789779,1759362339046,-200.0,0.0001689,2]
[388789780,1759362339071,-151.0,0.0001689,2]
[388789781,1759362339093,-151.0,0.0001689,2]
[388789782,1759362339117,-151.0,0.0001689,2]
[388789783,1759362339139,-151.0,0.0001689,2]
[388789784,1759362339164,-151.0,0.0001689,2]
[388789785,1759362339189,-500.0,0.00016899,2]
[388789786,1759362339215,-500.0,0.00016899,2]
[388789787,1759362339240,-500.0,0.00016899,2]
[388789788,1759362339265,-500.0,0.00016899,2]
[388789789,1759362339291,-500.0,0.00016899,2]
[388789790,1759362339316,-500.0,0.00016899,2]
[388789791,1759362339346,-500.0,0.00016899,2]
[388789792,1759362339373,-500.0,0.00016899,2]
[388789793,1759362339399,-500.0,0.00016899,2]
[388789794,1759362339425,-500.0,0.00016899,2]
[388789795,1759362339450,-500.0,0.00016899,2]
[388789796,1759362339476,-500.0,0.00016899,2]
[388789797,1759362339502,-500.0,0.00016899,2]
[388789798,1759362339527,-500.0,0.00016899,2]
[388789799,1759362339552,-423.81309482,0.00016899,2]
[388789800,1759362339742,-166.00701143,0.00016899,2]
[388789801,1759362339768,-500.0,0.00016899,2]
[388789802,1759362339795,-500.0,0.00016899,2]
[388789803,1759362339821,-500.0,0.00016899,2]
[388789804,1759362339846,-500.0,0.00016899,2]
[388789805,1759362339871,-500.0,0.00016899,2]
[388789806,1759362339897,-500.0,0.00016899,2]
[388789807,1759362339922,-500.0,0.00016899,2]
[388789808,1759362339946,-376.21404234,0.00016899,2]
[388789809,1759362339968,-2000.0,0.000169,2]
[388789810,1759362339991,-1000.0,0.000169,2]
[388789811,1759362340013,-33302.8765,0.000169,2]
[388789812,1759362340040,-191879.3088,0.000169,2]
[388789813,1759362340062,-500.0,0.000169,2]
[388789814,1759362340084,-500.0,0.000169,2]
[388789815,1759362340105,-500.0,0.000169,2]
[388789816,1759362340127,-172.34804615,0.000169,2]
[388789817,1759362340150,-400.0,0.000169,2]
[388789818,1759362340172,-500.0,0.000169,2]
[388789819,1759362340194,-501.58191572,0.000169,2]
[388789820,1759362340216,-500.0,0.000169,2]
[388789821,1759362340238,-500.0,0.000169,2]
[388789822,1759362340261,-500.0,0.000169,2]
[388789823,1759362340283,-1000.0,0.00016999,2]
[388789824,1759362340304,-250.0,0.00017,2]
[388789825,1759362340329,-500.0,0.00017058,2]
[388789826,1759362340351,-623.58710449,0.00017058,2]
[388789827,1759362340374,-151.0,0.00017058,2]
[388789828,1759362340399,-200.0,0.00017058,2]
[388789829,1759362340424,-8882.6885148,0.00017058,2]
[388789830,1759362340445,-200.0,0.00017058,2]
[388789831,1759362340468,-200.0,0.00017058,2]
[388789832,1759362340492,-500.0,0.00017058,2]
[388789833,1759362340515,-200.0,0.00017058,2]
[388789834,1759362340537,-200.0,0.00017058,2]
[388789835,1759362340559,-200.0,0.00017058,2]
[388789836,1759362340583,-500.0,0.00017058,2]
[388789837,1759362340605,-200.0,0.00017058,2]
[388789838,1759362340628,-500.0,0.00017058,2]
[388789839,1759362340652,-200.0,0.00017058,2]
[388789840,1759362340677,-500.0,0.00017058,2]
[388789841,1759362340700,-200.0,0.00017058,2]
[388789842,1759362340724,-500.0,0.00017058,2]
[388789843,1759362340746,-200.0,0.00017058,2]
[388789844,1759362340771,-500.0,0.00017058,2]
[388789845,1759362340793,-200.0,0.00017058,2]
[388789846,1759362340817,-500.0,0.00017058,2]
[388789847,1759362340839,-200.0,0.00017058,2]
[388789848,1759362340863,-500.0,0.00017058,2]
[388789849,1759362340884,-200.0,0.00017058,2]
[388789850,1759362340908,-500.0,0.00017058,2]
[388789851,1759362340931,-257.91778498,0.00017058,2]
[388789852,1759362340955,-500.0,0.00017058,2]
[388789853,1759362340979,-500.0,0.00017058,2]
[388789854,1759362341003,-500.0,0.00017058,2]
[388789855,1759362341027,-500.0,0.00017058,2]
[388789856,1759362341051,-500.0,0.00017058,2]
[388789857,1759362341074,-500.0,0.00017058,2]
[388789858,1759362341099,-500.0,0.00017058,2]
[388789859,1759362341123,-500.0,0.00017058,2]
[388789860,1759362341146,-500.0,0.00017058,2]
[388789861,1759362341169,-322.6107,0.00017058,2]
[388789862,1759362341192,-795.69283577,0.00017113,2]
[388789863,1759362341214,-1000.0,0.00017448,2]
[388789864,1759362341236,-500.0,0.00017448,2]
[388789865,1759362341258,-1000.0,0.00017448,2]
[388789866,1759362341280,-1000.0,0.00017448,2]
[388789867,1759362341303,-1000.0,0.00017448,2]
[388789868,1759362341330,-1000.0,0.00017448,2]
[388789869,1759362341353,-1500.0,0.00017996,2]
[388789870,1759362341377,-236.5936314,0.00017996,2]
[388789871,1759362341401,-1500.0,0.00017996,2]
[388789872,1759362341424,-1243.18309112,0.00017996,2]
[388789873,1759362341447,-406.72290751,0.00018033,2]
[388789874,1759362341472,-2500.0,0.00018321,2]
[388789875,1759362341494,-175.06869301,0.00018321,2]
[388789876,1759362341517,-195.0,0.00018321,2]
[388789877,1759362341541,-1717.0546865,0.0001837,2]
[388789878,1759362341563,-500.0,0.00018384,2]
[388789879,1759362341585,-267.46074303,0.00018427,2]
[388789880,1759362341608,-334.5472959,0.00018427,2]
[388789881,1759362341634,-1680.0,0.00018443,2]
[388789882,1759362341658,-349.33,0.00018488,2]
[388789883,1759362341682,-1271.76,0.00018488,2]
[388789884,1759362341705,-2000.0,0.00018544,2]
[388789885,1759362341728,-1500.0,0.00018544,2]
[388789886,1759362341752,-349.33,0.00018762,2]
[388789887,1759362341775,-1271.76,0.00018762,2]
[388789888,1759362341799,-1727.53968291,0.00018918,2]
[388789889,1759362341822,-1000.0,0.00018937,2]
[388789890,1759362341847,-370.35923647,0.00018945,2]
[388789891,1759362341869,-300.0,0.00019,2]
[388789892,1759362341893,-1000.0,0.00019017,2]
[388789893,1759362341918,-167.47,0.00019018,2]
[388789894,1759362341941,-3070.0,0.00019018,2]
[388789895,1759362341966,-815.0,0.00019018,2]
[388789896,1759362341989,-6234.0,0.00019018,2]
[388789897,1759362342014,-4114.0,0.00019018,2]
[388789898,1759362342386,-1179.0,0.00019018,2]
[388789899,1759362342413,-899.0,0.00019018,2]
[388789900,1759362342437,-4232.0,0.00019018,2]
[388789901,1759362342460,-3399.0,0.00019018,2]
[388789902,1759362342481,-2045.0,0.00019018,2]
[388789903,1759362342504,-787.0,0.00019018,2]
[388789904,1759362342527,-1264.0,0.00019018,2]
[388789905,1759362342548,-164.31,0.00019031,2]
[388789906,1759362342572,-349.33,0.00019036,2]
[388789907,1759362342595,-1271.76,0.00019036,2]
[388789908,1759362342618,-666.0,0.00019043,3]
[388789909,1759362342641,-241.15,0.00019045,2]
[388789910,1759362342664,-506.24210122,0.00019092,2]
[388789911,1759362342688,-500.0,0.00019177,2]
[388789912,1759362342711,-256.04827889,0.00019177,2]
[388789913,1759362342735,-291.05469674,0.00019177,2]
[388789914,1759362342758,-232.93998987,0.00019177,2]
[388789915,1759362342781,-1175.46,0.00019178,5]
[388789916,1759362342804,-1175.46,0.00019178,5]
[388789917,1759362342826,-1175.46,0.00019178,5]
[388789918,1759362342848,-1175.46,0.00019178,5]
[388789919,1759362342871,-1175.46,0.00019178,5]
[388789920,1759362342893,-1175.46,0.00019178,5]
[388789921,1759362342916,-1175.46,0.00019178,5]
[388789922,1759362342939,-1175.46,0.00019178,5]
[388789923,1759362342960,-1175.46,0.00019178,5]
[388789924,1759362342983,-1175.46,0.00019178,5]
[388789925,1759362343007,-1175.46,0.00019178,5]
[388789926,1759362343029,-1175.46,0.00019178,5]
[388789927,1759362343052,-1175.46,0.00019178,5]
[388789928,1759362343074,-1175.46,0.00019178,5]
[388789929,1759362343097,-1175.46,0.00019178,5]
[388789930,1759362343120,-1175.46,0.00019178,5]
[388789931,1759362343144,-1175.46,0.00019178,5]
[388789932,1759362343167,-1175.46,0.00019178,5]
[388789933,1759362343191,-1175.46,0.00019178,5]
[388789934,1759362343216,-1175.46,0.00019178,5]
[388789935,1759362343239,-1175.46,0.00019178,5]
[388789936,1759362343262,-1175.46,0.00019178,5]
[388789937,1759362343286,-1175.46,0.00019178,5]
[388789938,1759362343309,-1175.52938843,0.00019178,5]
[388789939,1759362343335,-349.33,0.0001931,2]
[388789940,1759362343359,-1271.76,0.0001931,2]
[388789941,1759362343385,-1727.53968289,0.00019331,2]
[388789942,1759362343408,-499.16,0.00019339,2]
[388789943,1759362343434,-188.51,0.00019403,2]
[388789944,1759362343458,-349.37,0.00019584,2]
[388789945,1759362343481,-1271.76,0.00019584,2]
[388789946,1759362343508,-200.89,0.00019597,2]
[388789947,1759362343531,-1727.53968289,0.00019745,2]
[388789948,1759362343556,-221.09576921,0.00019796,2]
[388789949,1759362343580,-408.2777534,0.00019796,2]
[388789950,1759362343603,-1772.51,0.0001982,2]
[388789951,1759362343626,-150.0,0.00019844,2]
[388789952,1759362343650,-389.52619892,0.00019844,2]
[388789953,1759362343674,-1271.76,0.00019858,2]
[388789954,1759362343697,-150.0,0.00019948,4]
[388789955,1759362343721,-150.0,0.00019948,4]
[388789956,1759362343744,-150.0,0.00019948,4]
[388789957,1759362343767,-150.0,0.00019948,4]
[388789958,1759362343791,-167.47,0.00019969,2]
[388789959,1759362343814,-2000.0,0.0002,2]
[388789960,1759362343837,-33833.52922975,0.0002,5]
[388789961,1759362344146,18923.0,0.00019018,2]
[388789962,1759362344380,1857.46,0.00017,7]
[388789963,1759362344440,150.0,0.000158,2]
[388789964,1759362344518,150.0,0.0001698,2]
[388789965,1759362344680,150.0,0.0001817,2]
[388789966,1759362344767,150.0,0.0001935,2]
[388789967,1759362345600,2126.2824,0.000168,2]
[388789968,1759362346682,570.0,0.00019018,2]
[388789969,1759362353177,1445.731,0.00019018,2]
[388789970,1759362359680,615.83,0.00019018,2]
[388789971,1759362363551,1500.0,0.00017996,2]
[388789972,1759362363616,500.0,0.000169,2]
[388789973,1759362363669,1000.0,0.00017448,2]
[388789974,1759362363706,1000.0,0.00018544,2]
[388789975,1759362369323,250.0,0.0001787,2]
[388789976,1759362374784,1585.274,0.00019018,2]
[388790260,1759362393942,6998.2276,0.000168,2]
[388790304,1759362407735,814.0,0.00019018,2]
[388790305,1759362470675,-277.9807,0.000168,2]
[388790306,1759362470700,-1000.0,0.000168,2]
[388790307,1759362470728,-18431.1509,0.00016958,2]
[388790308,1759362470756,-42360.4990115,0.00019629,2]
[388790310,1759362627186,154.0,0.00030136,120]
[388790311,1759362627748,154.0,0.00030136,120]
[388790312,1759362628341,154.0,0.00030136,120]
[388790313,1759362629347,157.85334583,0.00030136,120]
[388790314,1759362629940,154.0,0.00030136,120]
[388790318,1759362632400,-266.92376967,0.00017,7]
[388790319,1759362632473,-640.01711564,0.00017,7]
[388790320,1759362632549,-764.76911469,0.00017,7]
[388790321,1759362632559,-1692.84796122,0.00019018,2]
[388790322,1759362632571,-1377.15203878,0.00019018,2]
[388790323,1759362632583,-7149.187,0.00019018,2]
[388790324,1759362632593,-2184.422,0.00019018,2]
[388790325,1759362632602,-4114.0,0.00019018,2]
[388790326,1759362632612,-200.0,0.0002,2]
[388790327,1759362632623,-370.35923647,0.00020107,2]
[388790328,1759362632634,-1271.76,0.00020132,2]
[388790329,1759362632644,-152.96,0.00020145,2]
[388790330,1759362632654,-150.93,0.00020145,2]
[388790331,1759362632665,-152.27,0.00020145,2]
[388790332,1759362632675,-151.38,0.00020145,2]
[388790333,1759362632684,-521.62,0.00020146,2]
[388790334,1759362632694,-530.36,0.00020146,2]
[388790335,1759362632704,-1200.0,0.00020146,2]
[388790336,1759362632713,-531.41,0.00020146,2]
[388790337,1759362632723,-152.82,0.00020147,2]
[388790338,1759362632732,-150.38,0.00020147,2]
[388790339,1759362632741,-152.83,0.00020147,2]
[388790340,1759362632751,-250.0,0.00020152,2]
[388790341,1759362632760,-151.18,0.00020152,2]
[388790342,1759362632771,-150.51,0.00020152,2]
[388790343,1759362632780,-168.0,0.00020161,2]
[388790345,1759362632790,-1557.57150002,0.00020224,2]
[388790347,1759362632800,-300.0,0.00020248,2]
[388790349,1759362632809,-368.72,0.00020327,2]
[388790351,1759362632818,-1271.76,0.00020406,2]
[388790353,1759362632828,-248.42,0.00020508,2]
[388790355,1759362632837,-150.0,0.0002053,2]
[388790357,1759362632847,-1415.58,0.0002053,2]
[388790359,1759362632856,-18125.62,0.0002053,2]
[388790361,1759362632865,-19803.84,0.0002053,2]
[388790363,1759362632875,-200.0,0.00020536,2]
[388790365,1759362632884,-150.68,0.00020552,2]
[388790367,1759362632893,-531.64,0.00020552,2]
[388790368,1759362632903,-1271.76,0.0002068,2]
[388790370,1759362632912,-477.79062993,0.00020744,2]
[388790371,1759362632922,-831.42019512,0.00020761,2]
[388790372,1759362632934,-7734.33536399,0.00020761,2]
[388790373,1759362632943,-239.84119403,0.00020761,2]
[388790374,1759362632953,-2943.99,0.00020773,2]
[388790375,1759362632962,-168.0,0.00020829,2]
[388790376,1759362632972,-505.0,0.00020849,2]
[388790378,1759362632981,-500.0,0.00020877,2]
[388790380,1759362632990,-167.47,0.00020919,2]
[388790382,1759362633000,-200.0,0.00020927,2]
[388790384,1759362633009,-1271.76,0.00020954,2]
[388790386,1759362633019,-173.88,0.00020986,2]
[388790389,1759362633035,-350.0,0.00021,2]
[388790391,1759362633047,-519.57,0.00021,2]
[388790392,1759362633057,-243.0,0.000211,2]
[388790393,1759362633067,-514.0,0.000211,2]
[388790394,1759362633076,-385.0,0.000211,2]
[388790395,1759362633086,-786.0,0.000211,2]
[388790396,1759362633096,-171.98,0.00021114,2]
[388790397,1759362633106,-168.0,0.00021158,2]
[388790398,1759362633116,-1271.76,0.00021228,2]
[388790399,1759362633125,-168.0,0.00021429,2]
[388790400,1759362633135,-1271.76,0.00021502,2]
[388790401,1759362633145,-322.6107,0.00021512,2]
[388790402,1759362633155,-151.0,0.00021512,2]
[388790403,1759362633165,-151.0,0.00021512,2]
[388790404,1759362633175,-151.0,0.00021512,2]
[388790405,1759362633185,-151.0,0.00021512,2]
[388790406,1759362633194,-151.0,0.00021512,2]
[388790407,1759362633204,-151.0,0.00021512,2]
[388790408,1759362633214,-151.0,0.00021512,2]
[388790409,1759362633224,-151.0,0.00021512,2]
[388790410,1759362633233,-151.0,0.00021512,2]
[388790411,1759362633243,-151.0,0.00021512,2]
[388790412,1759362633253,-151.0,0.00021512,2]
[388790413,1759362633812,-151.0,0.00021512,2]
[388790414,1759362633825,-151.0,0.00021512,2]
[388790415,1759362633834,-151.0,0.00021512,2]
[388790416,1759362633844,-5001.16051739,0.00021525,2]
[388790417,1759362633853,-211.25792984,0.00021528,2]
[388790418,1759362633862,-473.63,0.00021532,2]
[388790419,1759362633871,-1099.918,0.00021533,2]
[388790420,1759362633882,-253.07189588,0.00021544,2]
[388790421,1759362633891,-4289.30120223,0.00021566,2]
[388790422,1759362633900,-1390.7480152,0.0002157,2]
[388790423,1759362633910,-253.07189588,0.00021573,2]
[388790424,1759362633919,-4289.30120223,0.00021587,2]
[388790425,1759362633933,-1390.7480152,0.00021594,2]
[388790426,1759362633943,-211.25792984,0.00021599,2]
[388790427,1759362633952,-253.07189588,0.00021602,2]
[388790428,1759362633962,-168.0,0.00021603,2]
[388790429,1759362633971,-1390.7480152,0.00021606,2]
[388790430,1759362633981,-4289.30120223,0.00021618,2]
[388790431,1759362633990,-233.79237829,0.00021618,2]
[388790432,1759362634001,-253.07189588,0.00021619,2]
[388790433,1759362634011,-4289.30120223,0.00021629,2]
[388790434,1759362634020,-253.07189588,0.00021639,2]
[388790435,1759362634030,-211.25792984,0.0002164,2]
[388790436,1759362634041,-168.0,0.0002164,2]
[388790437,1759362634050,-1390.7480152,0.00021645,2]
[388790438,1759362634059,-233.79237829,0.00021659,2]
[388790439,1759362634069,-211.25792984,0.00021668,2]
[388790440,1759362634079,-233.79237829,0.00021668,2]
[388790441,1759362634089,-233.79237829,0.0002167,2]
[388790442,1759362634098,-1390.7480152,0.00021673,2]
[388790443,1759362634107,-4289.30120223,0.00021685,2]
[388790444,1759362634117,-211.25792984,0.00021698,2]
[388790445,1759362634127,-233.79237829,0.000217,2]
[388790446,1759362634136,-150.0,0.0002172,2]
[388790447,1759362634146,-1271.76,0.00021776,2]
[388790448,1759362634155,-168.0,0.00021786,2]
[388790449,1759362634165,-168.0,0.00021792,2]
[388790450,1759362634174,-5000.0,0.00021817,2]
[388790451,1759362634184,-167.5068971,0.00021817,2]
[388790452,1759362634193,-500.0,0.00021817,2]
[388790453,1759362634202,-500.0,0.00021817,2]
[388790454,1759362634211,-500.0,0.00021817,2]
[388790455,1759362634221,-500.0,0.00021817,2]
[388790456,1759362634230,-500.0,0.00021817,2]
[388790457,1759362634239,-500.0,0.00021817,2]
[388790458,1759362634249,-286.96288375,0.00021817,2]
[388790459,1759362634259,-1214.69594655,0.00021817,2]
[388790460,1759362634268,-2755.9241578,0.00021817,2]
[388790461,1759362634279,-248.93641557,0.00021817,2]
[388790462,1759362634289,-167.47,0.0002187,2]
[388790463,1759362634298,-197.45673894,0.00021907,2]
[388790464,1759362634308,-377.63,0.00021907,2]
[388790465,1759362634317,-1214.69594654,0.00021908,2]
[388790466,1759362634326,-2755.92415771,0.00021908,2]
[388790467,1759362634336,-151.0,0.00021914,2]
[388790468,1759362634346,-426.14034373,0.00021915,2]
[388790469,1759362634355,-6115.74192721,0.00021916,2]
[388790470,1759362634364,-1000.0,0.00021916,2]
[388790471,1759362634374,-244.54706874,0.00021916,2]
[388790472,1759362634387,-500.0,0.00021916,2]
[388790473,1759362634402,-216.79628063,0.00021916,2]
[388790474,1759362634413,-500.0,0.00021916,2]
[388790475,1759362634423,-200.00301524,0.00021916,2]
[388790476,1759362634433,-500.0,0.00021916,2]
[388790477,1759362634444,-6474.23398,0.00021917,2]
[388790478,1759362634454,-808.0,0.00021917,2]
[388790479,1759362634464,-1764.58134116,0.00021917,2]
[388790480,1759362634476,-500.0,0.00021917,2]
[388790481,1759362634486,-500.0,0.00021917,2]
[388790482,1759362634496,-500.0,0.00021917,2]
[388790483,1759362634506,-500.0,0.00021917,2]
[388790484,1759362634517,-500.0,0.00021917,2]
[388790485,1759362634527,-500.0,0.00021917,2]
[388790486,1759362634537,-500.0,0.00021917,2]
[388790487,1759362634547,-725.19,0.00021917,2]
[388790488,1759362634557,-500.0,0.00021917,2]
[388790489,1759362634568,-500.0,0.00021917,2]
[388790490,1759362634578,-500.0,0.00021917,2]
[388790491,1759362634588,-500.0,0.00021917,2]
[388790492,1759362634599,-500.0,0.00021917,2]
[388790493,1759362634609,-500.0,0.00021917,2]
[388790494,1759362634620,-500.0,0.00021917,2]
[388790495,1759362634630,-500.0,0.00021917,2]
[388790496,1759362634641,-500.0,0.00021917,2]
[388790497,1759362634651,-500.0,0.00021917,2]
[388790498,1759362634661,-500.0,0.00021917,2]
[388790499,1759362634671,-500.0,0.00021917,2]
[388790500,1759362634681,-500.0,0.00021917,2]
[388790501,1759362634692,-500.0,0.00021917,2]
[388790502,1759362634702,-500.0,0.00021917,2]
[388790503,1759362634713,-500.0,0.00021917,2]
[388790504,1759362634723,-500.0,0.00021917,2]
[388790505,1759362634733,-500.0,0.00021917,2]
[388790506,1759362634744,-234.3,0.00021917,2]
[388790507,1759362634754,-500.0,0.00021917,2]
[388790508,1759362634764,-1301.0,0.00021917,2]
[388790509,1759362634775,-617.06800919,0.00021917,2]
[388790510,1759362634784,-500.0,0.00021917,2]
[388790511,1759362634795,-500.0,0.00021917,2]
[388790512,1759362634805,-697.5,0.00021917,2]
[388790513,1759362634815,-706.14,0.00021917,2]
[388790514,1759362634826,-500.0,0.00021917,2]
[388790515,1759362634839,-500.0,0.00021917,2]
[388790516,1759362634849,-500.0,0.00021917,2]
[388790517,1759362634859,-539.62,0.00021917,2]
[388790518,1759362634868,-500.0,0.00021917,2]
[388790519,1759362634879,-605.51,0.00021917,2]
[388790520,1759362634890,-500.0,0.00021917,2]
[388790521,1759362634899,-558.42,0.00021917,2]
[388790522,1759362634910,-500.0,0.00021917,2]
[388790523,1759362634920,-940.85,0.00021917,2]
[388790524,1759362634931,-500.0,0.00021917,2]
[388790525,1759362634943,-594.17,0.00021917,2]
[388790526,1759362634953,-500.0,0.00021917,2]
[388790527,1759362634963,-555.32,0.00021917,2]
[388790528,1759362634974,-500.0,0.00021917,2]